bitfinex-derivatives/quotes_SOLF0:USTF0_20250319
["timestamp","ask_amount","ask_price","bid_price","bid_amount"]
[1742407205732,67.49408361,130.48,130.01,8.3212]
[1742407205733,67.49408361,130.48,130.04,230.66]
[1742407205929,21.35408361,130.48,130.44,76.92]
[1742407206233,21.35408361,130.48,130.43,76.92]
[1742407206435,211.39610584,130.75,130.44,76.92]
[1742407206636,0.05213782,130.47,130.38,230.66]
[1742407206836,211.39610584,130.75,130.39,354.66]
[1742407207029,211.39610584,130.75,130.63,76.92]
[1742407207233,211.39610584,130.75,130.68,76.92]
[1742407207431,211.39610584,130.75,130.71,76.92]
[1742407207634,489.13243102,130.74,130.73,53.36523661]
[1742407207930,272.05549441,130.74,130.68,230.38]
[1742407208133,593.54823723,130.81,130.72,0.0505343]
[1742407208334,4.013,131.07,130.72,230.4305343]
[1742407208642,230.38,131.28,130.72,238.02]
[1742407208837,8.0918,131.31,130.72,230.38]
[1742407209033,676.16059033,131.36,130.72,230.38]
[1742407209334,76.6,131.05,130.72,230.38]
[1742407209533,76.6,131.06,130.91,0.0529009]
[1742407209739,76.6,131.04,130.91,0.0529009]
[1742407209934,76.6,131.06,130.72,589.38]
[1742407210131,76.6,130.96,130.72,230.38]
[1742407210440,660.08902909,131.09,130.72,15.5006758]
[1742407210943,751.96902909,131.09,130.72,15.5006758]
[1742407211137,76.6,131.05,130.72,15.5006758]
[1742407211339,660.08902909,131.09,130.72,15.5006758]
[1742407211839,676.16059033,131.22,130.87,0.04867682]
[1742407212039,676.16059033,131.22,130.88,1609.96]
[1742407212230,128.281,131.48,130.88,1609.96]
[1742407212434,1.32750958,131.35,130.88,1609.96]
[1742407212636,220.161,131.48,130.88,1609.96]
[1742407212935,91.88,131.48,130.88,1609.96]
[1742407213139,76.6,131.41,131.1,0.04887081]
[1742407213337,1.5212596,131.47,131.08,229.98]
[1742407213536,76.6,131.31,131.09,229.98]
[1742407213733,7.6076,131.45,131.24,0.00108174]
[1742407214040,76.6,131.43,131.24,0.00108174]
[1742407214235,76.6,131.43,131.08,390.55738859]
[1742407214435,229.52,131.64,131.08,390.55738859]
[1742407214436,124.0,131.54,131.09,229.52]
[1742407214633,76.6,131.46,131.09,229.52]
[1742407214837,76.6,131.37,131.09,229.52]
[1742407215040,76.6,131.44,131.1,1.52555301]
[1742407215238,215.88,131.54,131.26,0.04969539]
[1742407215442,76.6,131.48,131.26,0.04969539]
[1742407215640,4.2503,131.62,131.26,229.52]
[1742407215942,8.1821,131.63,131.26,229.52]
[1742407216342,128.2503,131.75,131.26,229.52]
[1742407216545,128.2503,131.75,131.43,0.05023605]
[1742407216742,7.5855,131.83,131.43,0.05023605]
[1742407217048,8.4196,131.98,131.41,229.08]
[1742407217241,7.5896,131.76,131.59,0.05083134]
[1742407217448,1.51549594,131.97,131.6,229.08]
[1742407217650,1.51549594,131.97,131.48,229.08]
[1742407217949,1.51549594,131.97,131.77,0.05149122]
[1742407218351,1.51549594,131.97,131.52,229.08]
[1742407218553,124.0,131.96,131.47,229.08]
[1742407218751,7.583,131.87,131.48,229.08]
[1742407218957,1.51572565,131.95,131.49,229.08]
[1742407219154,1.51572565,131.95,131.5,229.08]
[1742407219358,1.51572565,131.95,131.51,1603.62]
[1742407219561,1.51572565,131.95,131.52,229.08]
[1742407219764,1.51572565,131.95,131.53,1600.64]
[1742407220060,1.51572565,131.95,131.72,0.05190247]
[1742407220464,1.51572565,131.95,131.62,228.66]
[1742407220965,124.0,132.08,131.62,228.66]
[1742407221154,125.31930623,132.08,131.62,228.66]
[1742407221361,124.0,132.08,131.62,228.66]
[1742407221571,12.5266,132.09,131.84,0.0504159]
[1742407221766,1.31955636,132.07,131.84,0.0504159]
[1742407221973,1.31955636,132.07,131.62,228.66]
[1742407222163,124.0,132.06,131.62,228.66]
[1742407222360,124.0,132.06,131.94,0.05827221]
[1742407222557,8.4196,132.09,131.94,0.05827221]
[1742407222866,15.9996,132.09,131.6,228.2]
[1742407223056,0.05371001,132.03,131.69,0.05827221]
[1742407223263,228.25371001,132.03,131.68,0.05827221]
[1742407223463,228.2,132.03,131.64,0.05827221]
[1742407223661,228.2,132.03,131.48,228.2]
[1742407223964,124.0,132.02,131.82,0.05676161]
[1742407224166,0.05453092,131.85,131.26,228.2]
[1742407224364,228.2,131.84,131.26,228.2]
[1742407224572,236.2984,131.83,131.45,0.05827221]
[1742407224865,228.2,131.82,131.31,228.2]
[1742407225061,124.0,131.81,131.37,0.05827221]
[1742407225263,1.51745068,131.8,131.27,0.05827221]
[1742407225459,0.05062005,131.58,131.1,1.52555301]
[1742407225665,228.2,131.57,131.2,0.05827221]
[1742407225966,360.192,131.56,131.21,0.05827221]
[1742407226161,131.992,131.56,131.14,228.18]
[1742407226363,7.992,131.56,131.24,0.05827221]
[1742407226559,1.52033447,131.55,131.24,0.05827221]
[1742407226764,0.0574623,131.36,131.34,0.05561504]
[1742407226970,1.52033447,131.55,131.09,228.18]
[1742407227266,1.52033447,131.55,131.16,0.05827221]
[1742407227464,1.52033447,131.55,131.03,228.18]
[1742407227664,1.52033447,131.55,131.18,0.05827221]
[1742407227862,1.52033447,131.55,131.19,0.05827221]
[1742407228067,1.52033447,131.55,131.23,0.05827221]
[1742407228263,0.05311108,131.38,131.35,0.05447881]
[1742407228568,229.70033447,131.55,131.35,0.05447881]
[1742407228763,237.30033447,131.55,131.17,228.18]
[1742407228959,229.70033447,131.55,131.1,228.32]
[1742407229364,229.70033447,131.55,131.1,229.84555301]
[1742407229564,3.8955,131.54,131.1,229.84555301]
[1742407229768,0.04946688,131.34,131.31,0.05574035]
[1742407229963,228.32,131.44,131.31,0.05574035]
[1742407230267,26.25547176,131.36,131.1,1.52555301]
[1742407230568,235.49665206,131.35,131.11,26.25547176]
[1742407230784,26.25547176,131.29,130.9,150.25547176]
[1742407231063,26.25547176,131.29,130.99,13.12773588]
[1742407231263,7.6245,131.16,131.0,13.12773588]
[1742407231565,0.05496338,131.11,131.08,0.0565525]
[1742407231770,7.62,131.11,130.91,1.52776716]
[1742407232071,0.05278813,131.11,130.91,27.78323892]
[1742407232273,0.05278813,131.11,130.96,26.25547176]
[1742407232568,7.17665206,131.35,131.02,26.25547176]
[1742407232768,1.52276534,131.34,131.02,26.25547176]
[1742407232962,1.52276534,131.34,131.12,26.25547176]
[1742407233369,35.3982371,131.34,131.0,26.25547176]
[1742407233570,26.25547176,131.24,131.01,1.52660102]
[1742407233764,0.05376186,131.18,130.91,26.25547176]
[1742407233964,7.6288,131.08,130.91,26.25547176]
[1742407234167,228.48,131.17,130.8,228.48]
[1742407234365,7.6305,131.06,130.89,26.25547176]
[1742407234569,228.48,131.17,130.89,26.25547176]
[1742407234766,228.48,131.17,130.86,1.32839638]
[1742407234767,26.25547176,131.16,130.86,1.32839638]
[1742407234968,228.48,131.17,130.86,1.32839638]
[1742407234969,228.48,131.17,130.88,26.25547176]
[1742407235165,4.1969,131.18,131.02,0.05868918]
[1742407235573,4.2804,131.26,130.95,124.0]
[1742407235769,228.6,131.47,131.1,26.25547176]
[1742407235965,4.2804,131.43,131.16,26.25547176]
[1742407236371,228.6,131.39,131.12,124.0]
[1742407236567,0.0534338,131.26,131.24,0.053323]
[1742407236768,0.0534338,131.26,131.03,26.25547176]
[1742407237066,26.25547176,131.26,130.98,26.25547176]
[1742407237271,26.25547176,131.23,130.98,26.25547176]
[1742407237572,26.25547176,131.23,130.95,1.52730049]
[1742407237775,4.2804,131.27,130.95,1.52730049]
[1742407237967,0.04838756,131.1,131.08,7.532e-05]
[1742407238168,7.6308,131.05,130.95,1.52730049]
[1742407238374,228.6,131.08,130.95,1.52730049]
[1742407238667,7.8784,131.09,130.95,1.52730049]
[1742407239073,26.25547176,131.08,130.87,1.32872606]
[1742407239272,26.25547176,131.01,130.73,510.90553107]
[1742407239465,26.25547176,130.96,130.73,510.90553107]
[1742407239664,228.6,130.95,130.73,510.90553107]
[1742407239871,26.25547176,130.91,130.73,510.90553107]
[1742407240074,13.12773588,130.89,130.68,709.87334551]
[1742407240375,13.12773588,130.82,130.68,696.95614551]
[1742407240572,7.6513,130.7,130.68,663.38724551]
[1742407240772,236.4513,130.7,130.68,373.60648286]
[1742407241068,15.3113,130.7,130.68,373.60648286]
[1742407241275,7.7029807,130.7,130.68,325.05582932]
[1742407241480,13.12773588,130.9,130.69,122.37007532]
[1742407241672,13.12773588,130.85,130.68,325.05582932]
[1742407241867,26.25547176,130.82,130.68,325.00238286]
[1742407242097,26.25547176,130.77,130.47,26.25547176]
[1742407242272,26.25547176,130.67,130.5,7.65]
[1742407242467,26.25547176,130.72,130.51,7.65]
[1742407242678,26.25547176,130.77,130.57,0.05222769]
[1742407242869,26.25547176,130.72,130.57,0.05222769]
[1742407243069,26.25547176,130.72,130.61,7.65]
[1742407243271,26.25547176,130.77,130.62,7.65]
[1742407243575,228.8,130.91,130.71,7.65]
[1742407243771,26.25547176,130.88,130.67,7.65]
[1742407243976,0.05691107,130.82,130.8,0.04865054]
[1742407244176,0.05691107,130.82,130.6,229.06]
[1742407244367,228.8,130.91,130.65,26.25547176]
[1742407244573,228.8,130.91,130.74,7.65]
[1742407244767,26.25547176,130.88,130.66,3.9673]
[1742407244968,26.25547176,130.89,130.73,7.65]
[1742407245476,0.05448961,130.82,130.66,3.9673]
[1742407245672,229.11448961,130.82,130.61,4.2046]
[1742407245873,26.25547176,130.79,130.61,61.2]
[1742407246070,26.25547176,130.79,130.61,7.65]
[1742407246275,26.25547176,130.74,130.62,7.65]
[1742407246469,229.06,130.73,130.57,114.72007532]
[1742407246671,229.06,130.72,130.53,7.6605]
[1742407246879,0.05548313,130.69,130.67,0.05063216]
[1742407247372,26.25547176,130.79,130.53,230.53203192]
[1742407247576,0.0576119,130.69,130.67,0.05389648]
[1742407247775,229.2,130.86,130.68,7.65]
[1742407247976,26.25547176,130.81,130.57,3.9323]
[1742407248171,1.33086028,130.88,130.73,7.65]
[1742407248370,229.2,130.92,130.67,26.25547176]
[1742407248571,27.58602673,130.9,130.62,26.25547176]
[1742407248774,26.25547176,130.85,130.69,114.72007532]
[1742407248980,26.25547176,130.85,130.74,7.65]
[1742407249178,0.05445114,130.77,130.57,65.1323]
[1742407249376,0.05445114,130.77,130.7,7.65]
[1742407249574,26.25547176,130.8,130.66,7.65]
[1742407249773,229.2,130.84,130.57,3.9323]
[1742407249978,26.25547176,130.85,130.69,7.65]
[1742407250276,26.25547176,130.85,130.57,3.9323]
[1742407250277,256.78602673,130.9,130.75,7.65]
[1742407250479,26.25547176,131.07,130.8,7.65]
[1742407250480,26.25547176,130.95,130.8,7.65]
[1742407250683,1.33035151,130.92,130.84,7.65]
[1742407250876,26.25547176,130.98,130.81,7.65]
[1742407251075,0.04816445,130.89,130.7,4.1626]
[1742407251376,0.04816445,130.89,130.87,0.05167713]
[1742407251578,26.25547176,130.98,130.87,0.05167713]
[1742407251780,26.25547176,130.98,130.7,4.1626]
[1742407251781,0.05695388,130.89,130.7,4.1626]
[1742407251971,0.05695388,130.89,130.82,7.65]
[1742407252175,26.25547176,130.98,130.7,65.3626]
[1742407252379,26.25547176,131.08,130.91,7.65]
[1742407252776,0.05590735,131.01,130.81,229.28]
[1742407252979,26.25547176,130.98,130.86,7.65]
[1742407253185,26.25547176,130.98,130.82,114.72007532]
[1742407253384,26.25547176,130.93,130.9,0.05152069]
[1742407253577,229.28,130.92,130.7,65.3626]
[1742407253773,229.28,130.92,130.71,26.25547176]
[1742407253978,229.28,130.97,130.84,7.65]
[1742407254178,229.28,130.97,130.82,7.65]
[1742407254380,229.28,130.97,130.83,7.65]
[1742407254577,229.28,130.97,130.81,7.65]
[1742407254877,0.04960412,130.91,130.89,0.0491619]
[1742407255282,1.52788388,130.9,130.76,255.53547176]
[1742407255479,1.52788388,130.9,130.8,114.72007532]
[1742407255786,1.52788388,130.9,130.89,0.05658135]
[1742407255979,1.52788388,130.9,130.83,114.72007532]
[1742407256185,1.52788388,130.9,130.88,7.65]
[1742407256385,1.52788388,130.9,130.88,7.706956]
[1742407256586,0.05766504,130.91,130.89,7.65]
[1742407256780,229.28,131.03,130.9,7.65]
[1742407256976,1.32941132,131.0,130.92,7.65]
[1742407257178,229.28,131.03,130.92,114.72007532]
[1742407257385,1.32885291,131.06,130.97,7.65]
[1742407257681,229.28,131.09,131.0,7.65]
[1742407257882,229.28,131.09,130.99,7.65]
[1742407258081,229.28,131.09,130.89,229.28]
[1742407258082,0.05534036,131.03,131.0,7.7082401]
[1742407258386,0.05534036,131.03,131.01,7.65]
[1742407258687,230.52847245,131.06,131.0,0.05292386]
[1742407258882,0.05291306,131.03,131.0,0.05292386]
[1742407259082,0.05291306,131.03,130.87,4.1306]
[1742407259284,0.05291306,131.03,131.02,7.65]
[1742407259580,1.32859924,131.11,131.01,7.65]
[1742407259880,1.32859924,131.11,130.91,229.2]
[1742407259881,229.2,131.12,131.05,7.65]
[1742407260086,8.95281483,131.15,131.07,7.65]
[1742407260280,229.2,131.18,131.06,7.65]
[1742407260476,27.58325992,131.16,131.05,7.65]
[1742407260676,0.0525638,131.13,131.03,114.72007532]
[1742407260880,0.0525638,131.13,131.08,7.65]
[1742407261081,7.6229,131.19,131.08,7.65]
[1742407261280,26.25547176,131.21,131.11,7.65]
[1742407261487,26.25547176,131.21,131.12,7.65]
[1742407261685,1.32720581,131.23,131.12,7.65]
[1742407261887,1.32720581,131.23,131.12,114.72007532]
[1742407262090,0.05296245,131.18,131.15,114.7730716]
[1742407262383,229.2,131.24,131.16,7.65]
[1742407262593,229.2,131.24,131.16,122.37007532]
[1742407262787,229.2,131.24,131.08,4.0405]
[1742407262981,26.25547176,131.21,131.08,4.0405]
[1742407263185,229.2,131.24,131.14,7.65]
[1742407263585,0.05283761,131.16,131.13,0.0539789]
[1742407263782,0.05283761,131.16,131.13,7.7039789]
[1742407263978,229.2,131.24,131.13,7.65]
[1742407264183,0.05424367,131.16,131.13,0.05572054]
[1742407264485,0.05424367,131.16,130.95,229.12]
[1742407264486,13.12773588,131.15,130.95,229.12]
[1742407264686,229.12,131.22,131.1,7.65]
[1742407265086,229.12,131.22,131.11,7.65]
[1742407265388,1.5241579,131.22,131.19,7.65]
[1742407265589,229.02,131.35,131.21,7.65]
[1742407265782,1.32654812,131.33,131.16,26.25547176]
[1742407265976,229.02,131.41,131.27,7.65]
[1742407266188,229.02,131.4,131.28,7.65]
[1742407266391,1.32586581,131.38,131.3,7.65]
[1742407266579,229.02,131.4,131.33,7.65]
[1742407266784,1.32525991,131.41,131.34,7.65]
[1742407266983,229.02,131.46,131.34,7.65]
[1742407267282,1.3247302,131.45,131.35,7.70281621]
[1742407267480,1.3247302,131.45,131.36,7.65]
[1742407267683,229.02,131.46,131.36,7.65]
[1742407267878,7.6109,131.39,131.24,26.25547176]
[1742407268187,230.34465456,131.46,131.38,7.65]
[1742407268387,7.6109,131.39,131.31,114.72007532]
[1742407268587,228.84,131.38,131.3,0.05630962]
[1742407268778,0.04856287,131.36,131.24,61.2]
[1742407268982,0.04856287,131.36,131.08,30.27007176]
[1742407268983,26.25547176,131.31,131.08,30.27007176]
[1742407269181,228.84,131.3,131.18,7.65]
[1742407269387,26.25547176,131.27,131.17,7.65]
[1742407269586,26.25547176,131.27,131.15,7.65]
[1742407269781,26.25547176,131.27,131.13,8.1111]
[1742407269986,7.6238,131.17,131.08,4.0146]
[1742407270182,228.84,131.19,131.0,26.25547176]
[1742407270488,1.52462265,131.18,131.11,0.05798139]
[1742407270682,26.25547176,131.15,131.0,61.2]
[1742407270882,0.05186196,131.11,130.93,1.3278135]
[1742407271186,228.82,131.1,131.04,7.65]
[1742407271584,7.6322,131.02,130.91,12.1002]
[1742407271779,1.52566938,131.09,131.0,7.65]
[1742407271985,0.05079421,130.98,130.96,114.72007532]
[1742407272182,0.05079421,130.98,130.95,0.0513515]
[1742407272480,228.82,131.02,130.91,4.0657]
[1742407272684,0.05302143,130.98,130.95,0.05041885]
[1742407272879,1.52660102,131.01,130.97,114.72007532]
[1742407273084,228.82,131.11,131.0,7.65]
[1742407273280,26.25547176,131.08,130.93,3.9427]
[1742407273480,26.25547176,131.08,130.95,7.65]
[1742407273684,228.82,131.11,130.99,114.72007532]
[1742407273888,1.32854852,131.09,130.98,7.65]
[1742407274089,26.25547176,131.08,130.98,7.65]
[1742407274285,26.25547176,131.08,130.93,3.9427]
[1742407274485,0.05590136,131.06,130.93,3.9427]
[1742407274685,7.6352,130.97,130.95,7.65]
[1742407274887,255.17547176,131.0,130.83,4.0642]
[1742407275194,26.25547176,130.96,130.86,7.65]
[1742407275389,228.92,130.95,130.82,114.72007532]
[1742407275593,228.92,130.95,130.85,7.65]
[1742407275899,0.05067516,130.92,130.75,61.2]
[1742407276089,0.05067516,130.92,130.74,3.9086]
[1742407276294,7.6411,130.87,130.86,7.65]
[1742407276593,7.6411,130.87,130.74,3.9086]
[1742407276594,206.01440001,130.87,130.79,7.65]
[1742407276893,1.5283509,130.86,130.79,7.65]
[1742407277086,0.05308485,130.84,130.82,114.77805728]
[1742407277283,229.02,130.97,130.85,122.37007532]
[1742407277486,255.27547176,131.0,130.89,7.65]
[1742407277688,229.02,131.0,130.92,7.65]
[1742407277889,229.02,131.05,130.94,7.65]
[1742407278090,229.02,131.05,130.97,7.65]
[1742407278396,229.02,131.05,130.99,7.65]
[1742407278692,229.02,131.1,131.01,122.37007532]
[1742407278891,7.6317,131.03,131.02,7.65]
[1742407279094,26.25547176,131.04,130.83,3.9032]
[1742407279291,229.02,131.03,130.91,7.65]
[1742407279484,229.02,131.03,130.93,7.65]
[1742407279684,229.02,131.03,130.96,7.65]
[1742407279891,229.02,131.03,130.98,7.65]
[1742407280383,0.05489402,131.02,130.99,0.05088048]
[1742407280584,7.6334,131.0,130.99,8.048e-05]
[1742407280786,229.02,131.03,130.84,229.04]
[1742407280985,7.6335,131.0,130.98,7.65]
[1742407281285,229.04,131.08,131.02,7.65]
[1742407281488,229.04,131.08,131.01,7.65]
[1742407281688,251.99,131.08,130.86,26.25547176]
[1742407281883,0.04897969,131.06,130.84,290.04431211]
[1742407282092,251.99,131.08,130.95,114.72007532]
[1742407282292,22.95,131.04,130.84,61.00431211]
[1742407282500,26.25547176,131.05,130.94,114.72007532]
[1742407282792,1.526368,131.03,130.95,114.72007532]
[1742407282993,1.526368,131.03,130.92,114.72007532]
[1742407283193,7.634,130.99,130.98,1.51e-05]
[1742407283389,229.04,130.99,130.83,64.90751211]
[1742407283699,229.04,130.99,130.86,114.72007532]
[1742407283992,26.25547176,130.97,130.83,64.90751211]
[1742407284388,229.04,130.99,130.87,114.72007532]
[1742407284595,0.05079441,130.91,130.89,0.05325699]
[1742407284793,7.6392,130.9,130.89,0.05325699]
[1742407284993,229.04,130.91,130.83,3.9032]
[1742407285193,1.52788388,130.9,130.7,26.25547176]
[1742407285390,1.52788388,130.9,130.81,114.72007532]
[1742407285599,1.52788388,130.9,130.75,3.9391]
[1742407285789,1.52788388,130.9,130.81,114.72007532]
[1742407285993,26.25547176,130.89,130.75,101.38707532]
[1742407286194,7.6439,130.83,130.77,101.38707532]
[1742407286394,1.52811735,130.88,130.83,101.38707532]
[1742407286595,0.05194797,130.83,130.81,0.05210188]
[1742407286798,0.05194797,130.83,130.81,101.4391772]
[1742407286995,229.1,130.83,130.69,8.3423]
[1742407287298,7.6444,130.82,130.81,0.0503859]
[1742407287518,0.05208427,130.83,130.82,101.38707532]
[1742407287798,7.6422,130.85,130.82,101.38707532]
[1742407287992,1.52811735,130.88,130.85,101.38707532]
[1742407288300,0.05381894,130.85,130.83,101.38707532]
[1742407288492,0.05381894,130.85,130.81,101.38707532]
[1742407288691,255.35547176,130.92,130.85,3.98e-05]
[1742407288897,26.25547176,130.88,130.77,101.38707532]
[1742407289099,229.16,130.87,130.76,101.38707532]
[1742407289294,229.16,130.87,130.74,101.38707532]
[1742407289600,201.64904795,130.87,130.82,101.38707532]
[1742407289799,201.64904795,130.87,130.81,101.38707532]
[1742407289993,0.05707873,130.82,130.8,101.38707532]
[1742407290195,0.05707873,130.82,130.79,0.05743675]
[1742407290399,201.64904795,130.87,130.81,101.38707532]
[1742407290693,201.64904795,130.87,130.82,101.38707532]
[1742407290904,0.05786189,130.85,130.71,13.12773588]
[1742407291090,0.05786189,130.85,130.83,0.05435264]
[1742407291294,201.64904795,130.87,130.83,101.44142796]
[1742407291489,229.16,130.94,130.86,101.38707532]
[1742407291702,1.33002102,130.98,130.87,101.38707532]
[1742407291897,7.6407,130.88,130.85,101.38707532]
[1742407292090,1.33002102,130.98,130.87,101.38707532]
[1742407292295,1.33002102,130.98,130.88,101.38707532]
[1742407292597,0.04811783,130.88,130.76,13.12773588]
[1742407292795,255.47547176,130.87,130.76,61.00431211]
[1742407292994,0.05805269,130.83,130.71,8.0792]
[1742407293190,0.05805269,130.83,130.82,101.38707532]
[1742407293389,229.22,130.86,130.82,101.38707532]
[1742407293589,0.04844345,130.84,130.83,101.38707532]
[1742407293796,0.04844345,130.84,130.81,0.04942521]
[1742407293997,229.12408996,130.86,130.81,0.04942521]
[1742407294194,7.6387,130.91,130.85,101.38707532]
[1742407294398,229.22,130.92,130.86,101.38707532]
[1742407294592,229.22,130.92,130.85,101.38707532]
[1742407294796,229.22,130.92,130.84,101.38707532]
[1742407295103,229.22,130.92,130.73,61.00431211]
[1742407295104,229.22,130.92,130.87,101.38707532]
[1742407295300,0.05595893,130.89,130.87,0.05275075]
[1742407295598,229.24,130.97,130.88,101.38707532]
[1742407295798,252.19,130.97,130.87,61.05706286]
[1742407295996,278.44547176,130.97,130.76,229.24]
[1742407296200,255.49547176,130.97,130.89,101.38707532]
[1742407296404,278.44547176,130.97,130.88,101.38707532]
[1742407296595,278.44547176,130.97,130.76,61.00431211]
[1742407296797,7.6415,130.87,130.76,61.00431211]
[1742407297001,1.32963989,130.96,130.86,101.38707532]
[1742407297204,229.24,130.97,130.77,26.25547176]
[1742407297396,229.24,130.97,130.91,101.38707532]
[1742407297604,229.24,130.97,130.93,101.38707532]
[1742407297795,229.24,130.97,130.92,101.38707532]
[1742407297994,0.0563919,130.96,130.77,316.49978387]
[1742407298199,26.25547176,130.93,130.85,101.38707532]
[1742407298405,26.25547176,130.93,130.77,61.00431211]
[1742407298699,26.25547176,130.93,130.85,101.38707532]
[1742407298904,26.25547176,130.93,130.82,101.38707532]
[1742407299204,26.25547176,130.93,130.85,101.38707532]
[1742407299402,0.05501759,130.89,130.86,0.05058154]
[1742407299602,229.24,130.97,130.88,101.38707532]
[1742407299795,229.24,130.97,130.89,101.38707532]
[1742407299995,229.24,130.97,130.88,101.38707532]
[1742407300304,22.95,130.96,130.87,101.38707532]
[1742407300497,22.95,130.96,130.86,162.39138743]
[1742407300805,0.0488525,130.93,130.9,0.05847345]
[1742407301103,26.30432426,130.93,130.73,26.25547176]
[1742407301404,49.20547176,130.89,130.81,101.38707532]
[1742407301708,229.24,130.88,130.8,101.38707532]
[1742407301903,26.25547176,130.93,130.8,162.39138743]
[1742407301904,229.24,130.87,130.8,162.39138743]
[1742407302104,229.24,130.86,130.82,101.38707532]
[1742407302298,0.05179916,130.85,130.83,101.38707532]
[1742407302505,0.05179916,130.85,130.82,0.05262718]
[1742407302801,0.05179916,130.85,130.82,101.4397025]
[1742407303007,0.05179916,130.85,130.82,0.05262718]
[1742407303404,23.00179916,130.85,130.72,3.9619]
[1742407303602,49.25727092,130.85,130.76,101.38707532]
[1742407303806,49.20547176,130.85,130.75,101.38707532]
[1742407304001,229.24,130.86,130.74,101.38707532]
[1742407304206,26.25547176,130.83,130.73,101.38707532]
[1742407304503,22.95,130.81,130.59,26.25547176]
[1742407304709,0.05322243,130.8,130.63,12.2848]
[1742407304902,7.649,130.74,130.71,101.38707532]
[1742407305101,229.26,130.76,130.69,101.38707532]
[1742407305301,229.26,130.75,130.7,101.38707532]
[1742407305502,229.26,130.75,130.71,101.38707532]
[1742407305807,229.26,130.75,130.7,101.38707532]
[1742407306004,0.05513389,130.74,130.72,0.05504059]
[1742407306501,229.26,130.81,130.73,101.38707532]
[1742407306707,0.04871747,130.74,130.72,0.05840884]
[1742407306905,7.6479,130.76,130.67,7.6526]
[1742407307107,46.30614794,130.8,130.72,0.04913811]
[1742407307306,0.04981513,130.74,130.72,0.04913811]
[1742407307500,229.26,130.81,130.74,101.38707532]
[1742407307704,229.26,130.81,130.76,101.38707532]
[1742407307903,229.26,130.81,130.72,0.05610867]
[1742407307904,229.26,130.81,130.78,101.38707532]
[1742407308108,0.05283031,130.79,130.67,23.15307397]
[1742407308309,229.34,130.92,130.78,0.05459568]
[1742407308510,229.34,130.92,130.86,101.38707532]
[1742407308716,229.34,130.92,130.85,101.38707532]
[1742407308899,23.15307397,130.91,130.76,69.08441211]
[1742407309100,23.15307397,130.91,130.83,101.38707532]
[1742407309304,23.15307397,130.91,130.84,101.38707532]
[1742407309513,7.69424597,130.88,130.86,0.05693281]
[1742407309810,0.05374597,130.88,130.86,0.05693281]
[1742407311308,23.15307397,130.87,130.76,8.0801]
[1742407311509,23.15307397,130.87,130.78,101.38707532]
[1742407311709,23.13307397,130.87,130.79,101.38707532]
[1742407312010,23.13307397,130.87,130.77,101.38707532]
[1742407312210,23.13307397,130.87,130.78,101.38707532]
[1742407312407,0.05764205,130.83,130.81,0.05474112]
[1742407312608,229.36,130.82,130.76,3.8726]
[1742407313205,229.36,130.82,130.64,4.1281]
[1742407313409,23.15307397,130.79,130.7,101.38707532]
[1742407313813,0.05625502,130.76,130.73,0.02450469]
[1742407314111,229.36,130.82,130.75,101.38707532]
[1742407314509,229.36,130.82,130.65,8.4401]
[1742407314510,0.04921581,130.76,130.65,8.4401]
[1742407314704,229.36,130.82,130.65,69.44441211]
[1742407314915,23.15307397,130.8,130.72,101.38707532]
[1742407315112,23.15307397,130.8,130.71,101.38707532]
[1742407315319,7.6487,130.74,130.71,101.38707532]
[1742407315611,0.05003992,130.75,130.72,101.38707532]
[1742407315812,0.05003992,130.75,130.71,101.41158001]
[1742407316015,230.69103844,130.82,130.74,101.38707532]
[1742407316319,229.36,130.82,130.76,101.38707532]
[1742407316621,0.05014411,130.79,130.77,0.02450469]
[1742407316918,7.6462,130.78,130.77,0.02450469]
[1742407317115,0.05014411,130.79,130.77,0.02450469]
[1742407317313,0.05014411,130.79,130.78,101.38707532]
[1742407317516,0.05014411,130.79,130.77,0.02450469]
[1742407317710,0.05014411,130.79,130.78,101.38707532]